[Event "FIDE WSTC Open 65 2025"]
[Site "Prague"]
[Date "2025.02.20"]
[Round "4.48"]
[White "Noone, Joe"]
[Black "Vavruska, Antonin"]
[Result "1-0"]
[Annotator "ChessBase"]
[ECO "A00"]
[WhiteElo "1934"]
[BlackElo "1926"]
[PlyCount "95"]
[EventDate "2025.02.17"]
[EventType "team-tourn"]
[EventCountry "CZE"]
[SourceTitle "playchess.com"]
[Source "ChessBase"]
[SourceQuality "1"]
[TimeControl "40/5400+30:1800+30"]

1. b4 {[%emt 0:00:09]} e5 {[%emt 0:03:43]} 2. Bb2 {[%emt 0:01:32]} e4 {[%emt 0:00:50]} 3. c4 {[%emt 0:00:57]} Nf6 {[%emt 0:00:22]} 4. a3 {[%emt 0:03:24]} a5 {[%emt 0:10:38]} 5. b5 {[%emt 0:08:05]} Bc5 {[%emt 0:05:45]} 6. d4 {[%emt 0:05:44]} exd3 {[%emt 0:00:32]} 7. Qxd3 {[%emt 0:00:58]} O-O {[%emt 0:00:40]} 8. e3 {[%emt 0:10:34]} d6 {[%emt 0:06:08]} 9. Be2 {[%emt 0:01:24]} Nbd7 {[%emt 0:00:13]} 10. Nf3 {[%emt 0:00:58]} Bb6 {[%emt 0:05:07]} 11. Nbd2 {[%emt 0:06:44]} Nc5 {[%emt 0:01:51]} 12. Qc2 {[%emt 0:01:15]} a4 {[%emt 0:00:14]} 13. O-O {[%emt 0:02:09]} Bg4 {[%emt 0:00:19]} 14. Nd4 {[%emt 0:03:19]} Bxe2 {[%emt 0:03:52]} 15. Nxe2 {[%emt 0:00:04]} Qe7 {[%emt 0:01:14]} 16. Ng3 {[%emt 0:08:23]} Ncd7 {[%emt 0:06:37]} 17. Nf3 {[%emt 0:07:22]} Rfe8 {[%emt 0:09:22]} 18. Rae1 {[%emt 0:07:15]} g6 {[%emt 0:08:19]} 19. Bd4 {[%emt 0:17:18]} Ne4 {[%emt 0:05:25]} 20. Ne2 {[%emt 0:02:15]} f5 {[%emt 0:01:52]} 21. Nf4 {[%emt 0:01:00]} Qf7 {[%emt 0:09:54]} 22. Ba1 {[%emt 0:04:25]} Ba5 {[%emt 0:02:36]} 23. Re2 {[%emt 0:00:51]} Ndc5 {[%emt 0:01:38]} 24. Nd4 {[%emt 0:01:55]} h6 {[%emt 0:03:43]} 25. Nd5 {[%emt 0:00:57]} Nf6 {[%emt 0:04:55]} 26. Nxf5 {[%emt 0:00:15]} gxf5 {[%emt 0:00:55]} 27. Nxf6+ {[%emt 0:00:02]} Kf8 {[%emt 0:00:22]} 28. Qxf5 {[%emt 0:02:31]} Ne4 {[%emt 0:01:40]} 29. Nd7+ {[%emt 0:02:39]} Kg8 {[%emt 0:00:41]} 30. Qg4+ {[%emt 0:00:02]} Kh7 {[%emt 0:00:30]} 31. f3 {[%emt 0:00:51]} h5 {[%emt 0:00:53]} 32. Qh3 {[%emt 0:00:31]} Nc3 {[%emt 0:01:36]} 33. Rc2 {[%emt 0:00:22]} Rxe3 {[%emt 0:00:22]} 34. Rfc1 {[%emt 0:00:33]} Ne2+ {[%emt 0:03:23]} 35. Rxe2 {[%emt 0:00:16]} Rxe2 {[%emt 0:00:00]} 36. Nf6+ {[%emt 0:00:16]} Kh6 {[%emt 0:00:08]} 37. c5 {[%emt 0:00:55]} Bd2 {[%emt 0:00:46]} 38. Rd1 {[%emt 0:00:48]} Re1+ {[%emt 0:01:14]} 39. Rxe1 {[%emt 0:00:01]} Bxe1 {[%emt 0:00:01]} 40. Qf5 {[%emt 0:00:00]} Rf8 {[%emt 0:00:00]} 41. Qf4+ {[%emt 0:01:30]} Kg6 {[%emt 0:01:53]} 42. Qe4+ {[%emt 0:00:10]} Kh6 {[%emt 0:00:32]} 43. Qxe1 {[%emt 0:00:23]} Qb3 {[%emt 0:03:37]} 44. Bc3 {[%emt 0:09:21]} Qxb5 {[%emt 0:04:02]} 45. Qe3+ {[%emt 0:01:41]} Kg6 {[%emt 0:00:15]} 46. Qe4+ {[%emt 0:01:06]} Kf7 {[%emt 0:01:59]} 47. Qd5+ {[%emt 0:01:59]} Ke7 {[%emt 0:04:02]} 48. cxd6+ {[%emt 0:00:09]} 1-0

[Event "FIDE WSTC Open 65 2025"]
[Site "Prague"]
[Date "2025.02.21"]
[Round "5.1"]
[White "Nunn, John D M"]
[Black "Knaak, Rainer"]
[Result "1/2-1/2"]
[Annotator "TA"]
[ECO "C90"]
[WhiteElo "2533"]
[BlackElo "2464"]
[PlyCount "93"]
[EventDate "2025.02.17"]
[EventType "team-tourn"]
[EventCountry "CZE"]
[SourceTitle "playchess.com"]
[Source "ChessBase"]
[SourceQuality "1"]
[TimeControl "40/5400+30:1800+30"]

{[%evp 21,93,11,16,0,-1,0,4,0,17,-2,0,-6,4,10,11,-35,-36,-101,-24,-18,-15,-20,-18,-20,-15,-16,-21,-14,-21,-18,-16,-14,-18,-19,-21,-50,-33,-35,-35,-37,-8,-9,-9,-37,-31,-37,-22,-39,-34,-45,0,0,0,-6,0,0,0,0,37,0,0,0,0,0,0,-11,-11,-22,-25,-25,-10,-9,0,-23]} 1. e4 {[%emt 0:00:06]} e5 {[%emt 0:00:12]} 2. Nf3 {[%emt 0:00:08]} Nc6 {[%emt 0:00:05]} 3. Bb5 {[%emt 0:00:10]} a6 {[%emt 0:00:12]} 4. Ba4 {[%emt 0:00:06]} Nf6 {[%emt 0:00:21]} 5. O-O {[%emt 0:00:10]} Be7 {[%emt 0:00:17]} 6. d3 {[%emt 0:00:41]} b5 {[%emt 0:01:08]} 7. Bb3 {[%emt 0:00:06]} d6 {[%emt 0:01:25]} 8. c3 {[%emt 0:03:01]} O-O {[%emt 0:00:47]} 9. Nbd2 {[%emt 0:00:09]} Re8 {[%emt 0:06:15]} 10. Re1 {[%emt 0:05:52]} Na5 {[%emt 0:03:21]} 11. Bc2 {[%emt 0:00:07]} c5 {[%emt 0:00:06]} 12. d4 {[%emt 0:01:39] C90: Closed Ruy Lopez with 7...d6: Early deviations.} cxd4 {[%emt 0:01:37]} 13. cxd4 {[%emt 0:00:06]} exd4 {[%emt 0:00:06]} 14. Nxd4 {[%emt 0:00:33]} Bb7 {[%emt 0:00:08]} 15. Nf1 {[%emt 0:13:14]} Bf8 {[%emt 0:02:37][%cal Rf6e4]} 16. Ng3 {[%emt 0:00:19]} d5 {[%emt 0:20:59]} 17. e5 {[%emt 0:12:04]} Ne4 {[%emt 0:07:23] Against Bg5} 18. Bf4 $146 {[%emt 0:08:16]} (18. b3 $11 {is superior.}) (18. Nxe4 dxe4 19. Bxe4 Bxe4 20. Rxe4 Nc4 21. Qe2 Nxe5 22. Rxe5 Qxd4 23. Rxe8 Rxe8 24. Be3 Qd5 25. Qd2 Qxd2 26. Bxd2 Rc8 27. Rc1 {½-½ Divitt,A (1889)-Navoyan,G (2105) Arandjelovac op 2nd 2023 (3)}) 18... Nc4 $15 {[%emt 0:09:22][%csl LRb2,LRe5]} 19. b3 {[%emt 0:21:54] [#]} (19. Nxe4 $15 dxe4 20. Bxe4 Bxe4 21. Rxe4) 19... Nxe5 {[%emt 0:01:40]} (19... Qh4 $1 $17 {[%cal Rh4f4]} 20. Nxe4 Qxf4 21. Nf6+ gxf6) 20. Nxe4 $11 {[%emt 0:00:10]} dxe4 {[%emt 0:00:08]} 21. Bxe4 {[%emt 0:00:05]} Bxe4 {[%emt 0:06:41]} 22. Rxe4 {[%emt 0:00:07]} Qd5 {[%emt 0:00:32]} 23. Rxe5 {[%emt 0:03:48]} ({But not} 23. Qe2 $2 Nd3 24. Rxe8 Nxf4 25. Rxf8+ Rxf8 $19) 23... Rxe5 {[%emt 0:00:08]} 24. Bxe5 {[%emt 0:00:04]} Qxe5 {[%emt 0:00:05]} 25. Nf3 {[%emt 0:00:16]} Qb2 {[%emt 0:00:50]} 26. Qc1 {[%emt 0:00:43] Against Bc5} Qe2 {[%emt 0:01:09]} 27. h3 {[%emt 0:07:49]} Rd8 {[%emt 0:02:38]} 28. a4 {[%emt 0:03:46]} b4 {[%emt 0:01:30]} 29. Qf1 {[%emt 0:00:12]} Qd3 {[%emt 0:15:48]} 30. Rb1 {[%emt 0:04:42]} f6 {[%emt 0:01:57]} 31. Rb2 {[%emt 0:03:07] White is weak on the dark squares} Qd1 {[%emt 0:06:16]} 32. Rb1 {[%emt 0:03:15]} Qc2 {[%emt 0:00:05]} 33. Qc1 {[%emt 0:04:18]} Qd3 {[%emt 0:05:15][%cal Of8c5]} (33... Qxc1+ {simplifies} 34. Rxc1 Rd3 35. Rb1 Rc3) 34. Qe1 {[%emt 0:01:25]} Kf7 {[%emt 0:00:34]} 35. Rb2 {[%emt 0:01:12] [#] Rd2 would now be deadly.} Qd1 {[%emt 0:00:44]} 36. Kf1 {[%emt 0:00:07]} Qxe1+ {[%emt 0:01:55]} 37. Nxe1 {[%emt 0:01:32][%mdl 4096] Endgame KRB-KRN} Rd1 {[%emt 0:02:18]} 38. Ke2 {[%emt 0:01:37]} Ra1 {[%emt 0:00:05]} 39. Nd3 {[%emt 0:00:30]} Ke6 {[%emt 0:00:40]} 40. Rc2 {[%emt 0:00:31]} Rb1 {[%emt 0:00:39]} 41. Rc6+ {[%emt 0:06:54]} Kd5 {[%emt 0:03:49]} 42. Rxa6 {[%emt 0:00:07]} Rxb3 {[%emt 0:00:21]} 43. a5 {[%emt 0:00:40]} Ra3 {[%emt 0:03:01]} 44. Ra8 {[%emt 0:04:21]} Bd6 {[%emt 0:00:35] White must now prevent ...b3.} 45. a6 $1 {[%emt 0:01:20]} Ra2+ {[%emt 0:05:47]} 46. Ke3 {[%emt 0:01:27]} Ra3 {[%emt 0:01:32]} 47. Ke2 {[%emt 0:00:14] Weighted Error Value: White=0.10 (very precise) /Black=0.11 (very precise)   Mistake:       	White=2     	Black=1      Inaccurate:     	White=3     	Black=3      OK:         	White=15    	Black=15     Best:        	White=2     	---        Strong:       	White=1     	---} 1/2-1/2

[Event "FIDE WSTC Open 65 2025"]
[Site "Prague"]
[Date "2025.02.21"]
[Round "5.2"]
[White "Jussupow, Artur"]
[Black "Flear, Glenn C"]
[Result "1-0"]
[Annotator "TA"]
[ECO "D46"]
[WhiteElo "2559"]
[BlackElo "2384"]
[PlyCount "129"]
[EventDate "2025.02.17"]
[EventType "team-tourn"]
[EventCountry "CZE"]
[SourceTitle "playchess.com"]
[Source "ChessBase"]
[SourceQuality "1"]
[TimeControl "40/5400+30:1800+30"]

{[%evp 22,129,12,16,39,35,31,0,73,71,67,61,60,65,55,68,80,87,87,97,85,92,94,78,77,58,104,111,151,142,138,129,149,131,202,215,224,211,219,126,125,110,134,114,103,102,95,36,54,58,52,69,62,37,29,22,20,31,108,82,115,104,116,135,120,125,119,112,101,84,189,189,252,250,485,479,526,526,445,488,788,531,5812,12775,29950,29953,29951,29955,29951,29953,4606,5953,5953,5179,1796,1460,1569,1137,29967,29959,29982,29983,29987,29969,29965,29962,29975,29978,29975,29976]} 1. d4 {[%emt 0:00:07]} d5 {[%emt 0:02:21]} 2. c4 {[%emt 0:00:12]} c6 {[%emt 0:00:36]} 3. e3 {[%emt 0:01:00]} Nf6 {[%emt 0:00:15]} 4. Nc3 {[%emt 0:00:08]} e6 {[%emt 0:02:58]} 5. Nf3 {[%emt 0:00:45]} Nbd7 {[%emt 0:00:16]} 6. Qc2 {[%emt 0:00:10]} Bd6 {[%emt 0:00:31]} 7. Bd3 {[%emt 0:00:35]} O-O {[%emt 0:01:10]} 8. O-O {[%emt 0:00:40]} dxc4 {[%emt 0:04:52]} 9. Bxc4 {[%emt 0:00:14]} b5 {[%emt 0:00:34]} 10. Be2 {[%emt 0:00:39]} Bb7 {[%emt 0:00:24]} 11. Rd1 {[%emt 0:01:06]} Qc7 {[%emt 0:05:22]} 12. e4 {[%emt 0:01:21]} e5 {[%emt 0:01:45] D46: Semi-Slav: 5 e3 Nbd7 6 Bd3, Black avoids the Meran.} 13. Bg5 {[%emt 0:01:35]} exd4 {[%emt 0:36:40]} 14. Rxd4 {[%emt 0:03:10]} Bc5 {[%emt 0:02:47]} (14... Ne5 $11) 15. Rdd1 $16 {[%emt 0:27:00]} Ng4 {[%emt 0:06:13]} 16. Bh4 {[%emt 0:00:19][%cal Ob2b4]} Nde5 $146 {[%emt 0:01:06]} ({Predecessor:} 16... Rac8 17. Bg3 Nde5 18. Nh4 Qb6 19. Bxg4 Nxg4 20. Nf5 Rfe8 21. e5 Bf8 22. Nd6 Bxd6 23. exd6 {½-½ Horvath,C (2538)-Korneev,O (2606) AUT-chT 0607 2006 (4)}) 17. Nxe5 {[%emt 0:06:25]} (17. Bg3 {is more complex.} Bxf2+ 18. Bxf2 Nxf3+ 19. Bxf3 Qxh2+ 20. Kf1) 17... Nxe5 {[%emt 0:00:11]} 18. Rac1 {[%emt 0:00:20][%cal Oc3b5]} Rac8 {[%emt 0:05:42] [#]} 19. Na4 $1 {[%emt 0:19:29]} Be7 {[%emt 0:03:46]} (19... Bxf2+ 20. Bxf2) 20. Bxe7 {[%emt 0:00:53]} Qxe7 {[%emt 0:00:08]} 21. Nc5 {[%emt 0:00:07]} Rcd8 {[%emt 0:04:30]} 22. Nxb7 {[%emt 0:16:16]} Qxb7 {[%emt 0:01:01]} 23. Qc5 {[%emt 0:00:06]} f6 {[%emt 0:07:37]} (23... Rde8 $14) 24. f4 {[%emt 0:02:57]} Ng6 {[%emt 0:02:03]} 25. g3 {[%emt 0:00:53]} (25. Qxc6 Qxc6 26. Rxc6 Nxf4 $14) 25... Ne7 {[%emt 0:01:50]} 26. Kg2 {[%emt 0:01:14]} g6 {[%emt 0:01:27]} 27. Bf3 {[%emt 0:05:38] White is much more active.} Rd7 {[%emt 0:03:29]} (27... Kf7 $16 28. Rd6 Rxd6 29. Qxd6 Qb8) 28. Rxd7 $18 {[%emt 0:01:37]} Qxd7 {[%emt 0:00:04]} 29. Rd1 {[%emt 0:00:15] Repels Qd2+} Qc7 {[%emt 0:00:10]} 30. Qd6 {[%emt 0:03:12] Dodges Rd8} ({White should play} 30. Rd6 $18) 30... Qxd6 $16 {[%emt 0:00:42]} 31. Rxd6 {[%emt 0:00:05][%mdl 4096] Endgame KRB-KRN} Kf7 {[%emt 0:00:39]} 32. Kf2 {[%emt 0:01:49]} Rc8 {[%emt 0:00:30]} 33. Ke3 {[%emt 0:02:16]} Rc7 {[%emt 0:00:20]} 34. g4 {[%emt 0:00:28]} (34. Bg4 $16) 34... g5 {[%emt 0:01:01]} 35. fxg5 {[%emt 0:00:14]} fxg5 {[%emt 0:00:04]} 36. e5 {[%emt 0:00:06]} Ng6 {[%emt 0:01:52]} 37. Bxc6 {[%emt 0:02:08]} Nxe5 {[%emt 0:00:22]} 38. Bd5+ {[%emt 0:00:08]} (38. Bxb5 Nxg4+ 39. Kf3 h5 $11 (39... Nxh2+ 40. Kg3 $16)) 38... Kg7 {[%emt 0:00:17]} 39. h3 {[%emt 0:00:05]} Rc2 {[%emt 0:00:54]} (39... b4 $14) 40. Ra6 {[%emt 0:00:43]} Rxb2 {[%emt 0:01:16]} 41. Rxa7+ {[%emt 0:30:29]} Kf6 {[%emt 0:31:06]} 42. Ra6+ {[%emt 0:02:27]} ({Don't take} 42. Rxh7 Nc4+ 43. Kd4 Rxa2 $11) 42... Kg7 {[%emt 0:01:17]} 43. Kd4 {[%emt 0:01:58]} Ng6 {[%emt 0:00:00] [#]} 44. Ra7+ $1 {[%emt 0:00:00]} Kh8 {[%emt 0:00:00]} 45. Rb7 {[%emt 0:00:00]} b4 {[%emt 0:00:00]} (45... Rd2+ $16 {was worth a try.} 46. Kc5 Nf4) 46. Bb3 $18 {[%emt 0:00:00]} Nf4 {[%emt 0:00:00]} (46... Rd2+ $142 47. Kc4 Ne5+ 48. Kxb4 Rh2) 47. Rxb4 {[%emt 0:00:00]} Nxh3 $2 {[%emt 0:00:00]} (47... Rd2+ 48. Kc3 Rd8) 48. a4 {[%emt 0:00:00][%cal Ba2a4,Ba4a5][%mdl 32]} Nf4 {[%emt 0:00:00]} 49. a5 {[%emt 0:00:00]} Rd2+ {[%emt 0:00:00]} 50. Ke4 {[%emt 0:00:00]} Rd7 {[%emt 0:00:00]} (50... Rd8 $142 51. a6 Ra8) 51. Bc4 {[%emt 0:00:00]} Ra7 {[%emt 0:02:19]} 52. a6 {[%emt 0:00:00]} Ne6 {[%emt 0:00:42]} 53. Bxe6 {[%emt 0:00:00]} Rxa6 {[%emt 0:00:07] KRB-KR} 54. Ke5 {[%emt 0:00:10]} Kg7 {[%emt 0:02:09]} 55. Rb7+ {[%emt 0:00:54]} Kh6 {[%emt 0:00:07]} 56. Bd5 {[%emt 0:02:52] and Rc7 should not be overlooked} Ra5 {[%emt 0:00:29]} 57. Rc7 {[%emt 0:00:22]} Kg6 {[%emt 0:00:50]} 58. Rc6+ {[%emt 0:00:03]} Kg7 {[%emt 0:00:08]} 59. Rd6 {[%emt 0:00:03] White threatens Kf5 and mate.} h6 {[%emt 0:01:08]} 60. Kf5 {[%emt 0:00:59] White mates.} Ra7 {[%emt 0:00:47]} 61. Rg6+ {[%emt 0:01:09]} Kh7 {[%emt 0:00:10]} 62. Re6 {[%emt 0:00:31]} Rf7+ {[%emt 0:00:46]} 63. Ke5 {[%emt 0:00:02]} Rf4 {[%emt 0:01:15]} 64. Be4+ {[%emt 0:00:10]} Kg7 {[%emt 0:00:04]} 65. Bf5 {[%emt 0:00:44] Weighted Error Value: White=0.26 (precise) /Black=0.42  Mistake:       	White=2     	Black=8      Inaccurate:     	White=2     	Black=3      OK:         	White=22    	Black=9      Best:        	White=3     	Black=5} 1-0

[Event "FIDE WSTC Open 65 2025"]
[Site "Prague"]
[Date "2025.02.21"]
[Round "5.3"]
[White "Kosten, Anthony C."]
[Black "Meister, Jakob"]
[Result "1/2-1/2"]
[Annotator "RC"]
[ECO "B13"]
[WhiteElo "2372"]
[BlackElo "2418"]
[PlyCount "29"]
[EventDate "2025.02.17"]
[EventType "team-tourn"]
[EventCountry "CZE"]
[SourceTitle "playchess.com"]
[Source "ChessBase"]
[SourceQuality "1"]
[TimeControl "40/5400+30:1800+30"]

1. c4 {[%emt 0:00:13]} c6 {[%emt 0:00:14]} 2. e4 {[%emt 0:13:09]} d5 {[%emt 0:03:07]} 3. exd5 {[%emt 0:00:07]} cxd5 {[%emt 0:00:06]} 4. d4 {[%emt 0:01:44]} Nf6 {[%emt 0:00:09]} 5. Nc3 {[%emt 0:00:05]} Nc6 {[%emt 0:00:26]} 6. Nf3 {[%emt 0:02:18]} Bg4 {[%emt 0:02:29]} 7. cxd5 {[%emt 0:00:09]} Nxd5 {[%emt 0:00:21]} 8. Qb3 {[%emt 0:00:41]} Bxf3 {[%emt 0:00:27]} 9. gxf3 {[%emt 0:00:07]} e6 {[%emt 0:00:07]} 10. Qxb7 {[%emt 0:00:20]} Nxd4 {[%emt 0:00:17]} 11. Bb5+ {[%emt 0:00:48]} Nxb5 {[%emt 0:00:09]} 12. Qc6+ {[%emt 0:08:10]} Ke7 {[%emt 0:00:07]} 13. Qc5+ {[%emt 0:00:11]} Ke8 {[%emt 0:03:55]} 14. Qc6+ {[%emt 0:02:18]} Ke7 {[%emt 0:00:32]} 15. Qc5+ {[%emt 0:00:08]} 1/2-1/2

[Event "FIDE WSTC Open 65 2025"]
[Site "Prague"]
[Date "2025.02.21"]
[Round "5.4"]
[White "Koehler, Gerhard"]
[Black "Large, Peter G"]
[Result "0-1"]
[Annotator "RC"]
[ECO "A30"]
[WhiteElo "2215"]
[BlackElo "2314"]
[PlyCount "54"]
[EventDate "2025.02.17"]
[EventType "team-tourn"]
[EventCountry "CZE"]
[SourceTitle "playchess.com"]
[Source "ChessBase"]
[SourceQuality "1"]
[TimeControl "40/5400+30:1800+30"]

1. c4 {[%emt 0:00:05]} Nf6 {[%emt 0:01:33]} 2. Nc3 {[%emt 0:01:12]} e6 {[%emt 0:00:32]} 3. Nf3 {[%emt 0:00:50]} b6 {[%emt 0:00:43]} 4. g3 {[%emt 0:03:20]} c5 {[%emt 0:02:49]} 5. Bg2 {[%emt 0:01:14]} Bb7 {[%emt 0:00:07]} 6. O-O {[%emt 0:00:15]} Be7 {[%emt 0:06:04]} 7. b3 {[%emt 0:05:59]} O-O {[%emt 0:00:13]} 8. Bb2 {[%emt 0:02:46]} a6 {[%emt 0:03:26]} 9. d4 {[%emt 0:06:10]} cxd4 {[%emt 0:00:10]} 10. Qxd4 {[%emt 0:00:25]} d6 {[%emt 0:00:42]} 11. Rfd1 {[%emt 0:12:33]} Nbd7 {[%emt 0:02:17]} 12. Rac1 {[%emt 0:01:45]} Qb8 {[%emt 0:10:00]} 13. e4 {[%emt 0:09:26]} Rd8 {[%emt 0:05:19]} 14. Qe3 {[%emt 0:07:35]} Bf8 {[%emt 0:02:38]} 15. Nd4 {[%emt 0:01:14]} Re8 {[%emt 0:01:06]} 16. Qd2 {[%emt 0:02:16]} Qc7 {[%emt 0:05:54]} 17. h3 {[%emt 0:06:38]} Rac8 {[%emt 0:02:09]} 18. Nde2 {[%emt 0:04:35]} Qb8 {[%emt 0:00:45]} 19. g4 {[%emt 0:00:16]} h6 {[%emt 0:02:20]} 20. Qf4 {[%emt 0:11:06]} Ne5 {[%emt 0:03:49]} 21. Qg3 {[%emt 0:02:35]} b5 {[%emt 0:15:41]} 22. cxb5 {[%emt 0:02:36]} axb5 {[%emt 0:00:15]} 23. a3 {[%emt 0:02:17]} Ba8 {[%emt 0:04:40]} 24. f4 {[%emt 0:07:39]} Ng6 {[%emt 0:01:03]} 25. Rd4 {[%emt 0:02:16]} e5 {[%emt 0:03:13]} 26. Rb4 {[%emt 0:01:59]} exf4 {[%emt 0:00:29]} 27. Nxf4 {[%emt 0:00:16]} d5 {[%emt 0:01:42]} 0-1

[Event "FIDE WSTC Open 65 2025"]
[Site "Prague"]
[Date "2025.02.21"]
[Round "5.5"]
[White "Birnboim, Nathan"]
[Black "Garcia Palermo, Carlos Horacio"]
[Result "1-0"]
[Annotator "RC"]
[ECO "C01"]
[WhiteElo "2313"]
[BlackElo "2412"]
[PlyCount "57"]
[EventDate "2025.02.17"]
[EventType "team-tourn"]
[EventCountry "CZE"]
[SourceTitle "playchess.com"]
[Source "ChessBase"]
[SourceQuality "1"]
[TimeControl "40/5400+30:1800+30"]

1. e4 {[%emt 0:00:24]} e6 {[%emt 0:00:20]} 2. d4 {[%emt 0:00:15]} d5 {[%emt 0:00:07]} 3. exd5 {[%emt 0:00:23]} exd5 {[%emt 0:00:05]} 4. c4 {[%emt 0:00:09]} Nf6 {[%emt 0:00:50]} 5. Nc3 {[%emt 0:00:07]} Bb4 {[%emt 0:00:47]} 6. Nf3 {[%emt 0:00:08]} O-O {[%emt 0:00:45]} 7. Bd3 {[%emt 0:00:33]} c5 {[%emt 0:01:24]} 8. O-O {[%emt 0:01:12]} dxc4 {[%emt 0:06:01]} 9. Bxc4 {[%emt 0:00:28]} cxd4 {[%emt 0:01:38]} 10. Nxd4 {[%emt 0:07:07]} Bg4 {[%emt 0:07:13]} 11. Nce2 {[%emt 0:17:58]} Nbd7 {[%emt 0:08:45]} 12. h3 {[%emt 0:10:11]} Bh5 {[%emt 0:02:12]} 13. Qb3 {[%emt 0:00:00]} Bc5 {[%emt 0:09:51]} 14. Be3 {[%emt 0:00:00]} Qb6 {[%emt 0:03:32]} 15. Nf4 {[%emt 0:13:20]} Bxd4 {[%emt 0:20:48]} 16. Bxd4 {[%emt 0:00:18]} Qxd4 {[%emt 0:00:06]} 17. Nxh5 {[%emt 0:00:09]} Nxh5 {[%emt 0:15:38]} 18. Rad1 {[%emt 0:02:15]} Qe4 {[%emt 0:00:14]} 19. Rxd7 {[%emt 0:00:17]} Nf4 {[%emt 0:00:06]} 20. Bxf7+ {[%emt 0:00:37]} Kh8 {[%emt 0:00:04]} 21. Qxb7 {[%emt 0:00:41]} Qf5 {[%emt 0:00:30]} 22. Rfd1 {[%emt 0:07:28]} h5 {[%emt 0:00:14]} 23. Qf3 {[%emt 0:02:06]} Rab8 {[%emt 0:07:48]} 24. Bb3 {[%emt 0:04:10]} a5 {[%emt 0:00:12]} 25. Kh1 {[%emt 0:12:40]} a4 {[%emt 0:00:54]} 26. Bxa4 {[%emt 0:00:26]} Rxb2 {[%emt 0:00:11]} 27. Bb3 {[%emt 0:01:54]} Rf6 {[%emt 0:09:29]} 28. Qa8+ {[%emt 0:02:58]} Kh7 {[%emt 0:00:16]} 29. Qg8+ {[%emt 0:00:11]} 1-0

[Event "FIDE WSTC Open 65 2025"]
[Site "Prague"]
[Date "2025.02.21"]
[Round "5.6"]
[White "Ortega, Lexy"]
[Black "Maryasin, Boris"]
[Result "1/2-1/2"]
[Annotator "RC"]
[ECO "E92"]
[WhiteElo "2348"]
[BlackElo "2218"]
[PlyCount "85"]
[EventDate "2025.02.17"]
[EventType "team-tourn"]
[EventCountry "CZE"]
[SourceTitle "playchess.com"]
[Source "ChessBase"]
[SourceQuality "1"]
[TimeControl "40/5400+30:1800+30"]

1. d4 {[%emt 0:00:32]} Nf6 {[%emt 0:00:18]} 2. Nf3 {[%emt 0:00:01]} g6 {[%emt 0:01:02]} 3. c4 {[%emt 0:00:29]} Bg7 {[%emt 0:00:26]} 4. Nc3 {[%emt 0:00:07]} d6 {[%emt 0:01:09]} 5. e4 {[%emt 0:01:58]} O-O {[%emt 0:00:27]} 6. Be2 {[%emt 0:00:53]} e5 {[%emt 0:00:39]} 7. d5 {[%emt 0:00:16]} Na6 {[%emt 0:01:01]} 8. Bg5 {[%emt 0:01:36]} h6 {[%emt 0:00:35]} 9. Bh4 {[%emt 0:10:03]} g5 {[%emt 0:03:17]} 10. Bg3 {[%emt 0:00:01]} Nh5 {[%emt 0:00:21]} 11. h4 {[%emt 0:03:15]} g4 {[%emt 0:02:36]} 12. Nh2 {[%emt 0:00:09]} Nxg3 {[%emt 0:00:23]} 13. fxg3 {[%emt 0:00:01]} h5 {[%emt 0:00:14]} 14. O-O {[%emt 0:00:02]} Nc5 {[%emt 0:02:23]} 15. b4 {[%emt 0:04:21]} Nd7 {[%emt 0:00:15]} 16. Qd2 {[%emt 0:06:23]} a5 {[%emt 0:00:47]} 17. a3 {[%emt 0:13:36]} axb4 {[%emt 0:02:52]} 18. axb4 {[%emt 0:00:50]} Rxa1 {[%emt 0:00:12]} 19. Rxa1 {[%emt 0:00:01]} Qf6 {[%emt 0:03:13]} 20. Nb5 {[%emt 0:10:35]} Bh6 {[%emt 0:01:04]} 21. Qd3 {[%emt 0:01:21]} Qd8 {[%emt 0:00:40]} 22. Rf1 {[%emt 0:05:07]} Nf6 {[%emt 0:03:33]} 23. Rf2 {[%emt 0:14:20]} Ne8 {[%emt 0:05:23]} 24. c5 {[%emt 0:14:50]} Qe7 {[%emt 0:08:29]} 25. Qc3 {[%emt 0:08:13]} f5 {[%emt 0:04:51]} 26. Na7 {[%emt 0:02:17]} Bd7 {[%emt 0:00:35]} 27. Nf1 {[%emt 0:02:03]} Nf6 {[%emt 0:01:17]} 28. Bd3 {[%emt 0:00:38]} fxe4 {[%emt 0:01:17]} 29. Bc4 {[%emt 0:00:06]} e3 {[%emt 0:03:18]} 30. Nxe3 {[%emt 0:00:03]} Ne4 {[%emt 0:00:13]} 31. Rxf8+ {[%emt 0:00:07]} Qxf8 {[%emt 0:00:03]} 32. Qe1 {[%emt 0:00:21]} dxc5 {[%emt 0:01:10]} 33. d6+ {[%emt 0:00:38]} Kg7 {[%emt 0:00:08]} 34. Nd5 {[%emt 0:01:03]} Nf6 {[%emt 0:01:44]} 35. dxc7 {[%emt 0:00:05]} Nxd5 {[%emt 0:01:19]} 36. Bxd5 {[%emt 0:00:23]} Qd6 {[%emt 0:00:04]} 37. Qe4 {[%emt 0:00:44]} Qxc7 {[%emt 0:00:33]} 38. Kh2 {[%emt 0:00:31]} cxb4 {[%emt 0:08:44]} 39. Qxb4 {[%emt 0:00:18]} Be8 {[%emt 0:01:41]} 40. Nb5 {[%emt 0:00:35]} Bxb5 {[%emt 0:00:34]} 41. Qxb5 {[%emt 0:00:04]} Qe7 {[%emt 0:37:24]} 42. Be4 {[%emt 0:04:44]} Bf4 {[%emt 0:00:00]} 43. Qxb7 {[%emt 0:09:51]} 1/2-1/2